[Event "Charlotte Open 2024"]
[Site "Charlotte"]
[Date "2024.01.15"]
[Round "4.3"]
[White "Horobetz, Graham"]
[Black "Sadorra, Julio Catalino"]
[Result "0-1"]
[ECO "C70"]
[WhiteElo "2249"]
[BlackElo "2554"]
[Annotator "RC"]
[PlyCount "148"]
[EventDate "2024.01.05"]
[EventType "swiss"]
[EventCountry "USA"]
[SourceTitle "playchess.com"]
[Source "ChessBase"]
[SourceQuality "1"]
[TimeControl "6600+10"]

1. e4 {[%emt 0:29:07]} e5 {[%emt 0:00:14]} 2. Nf3 {[%emt 0:00:04]} Nc6 {[%emt 0:00:06]} 3. Bb5 {[%emt 0:00:05]} a6 {[%emt 0:00:06]} 4. Ba4 {[%emt 0:00:04]} Nge7 {[%emt 0:00:22]} 5. c3 {[%emt 0:00:11]} Ng6 {[%emt 0:00:33]} 6. O-O {[%emt 1:21:39]} d5 {[%emt 0:00:33]} 7. exd5 {[%emt 0:00:00]} Qxd5 {[%emt 0:00:07]} 8. d4 {[%emt 0:00:00]} Bg4 {[%emt 0:00:22]} 9. dxe5 {[%emt 0:00:00]} O-O-O {[%emt 0:04:02]} 10. Qxd5 {[%emt 0:00:00]} Rxd5 {[%emt 0:00:03]} 11. c4 {[%emt 0:00:00]} Rd3 {[%emt 0:06:03]} 12. Bc2 {[%emt 0:00:00]} Rd7 {[%emt 0:00:32]} 13. Be3 {[%emt 0:00:00]} Ngxe5 {[%emt 0:07:42]} 14. Nxe5 {[%emt 0:00:00]} Nxe5 {[%emt 0:00:04]} 15. b3 {[%emt 0:00:00]} g6 {[%emt 0:25:40]} 16. f3 {[%emt 0:00:00]} Bg7 {[%emt 0:01:43]} 17. Nd2 {[%emt 0:00:00]} Rhd8 {[%emt 0:13:06]} 18. Rad1 {[%emt 0:00:00]} Bf5 {[%emt 0:01:14]} 19. Ne4 {[%emt 0:00:00]} Bxe4 {[%emt 0:00:18]} 20. fxe4 {[%emt 0:00:00]} Ng4 {[%emt 0:00:34]} 21. Rxd7 {[%emt 0:00:00]} Rxd7 {[%emt 0:00:33]} 22. Bc5 {[%emt 0:00:00]} Bd4+ {[%emt 0:04:21]} 23. Bxd4 {[%emt 0:00:00]} Rxd4 {[%emt 0:00:02]} 24. Rd1 {[%emt 0:00:00]} Rd7 {[%emt 0:09:16]} 25. b4 {[%emt 0:00:00]} b6 {[%emt 0:16:17]} 26. Ba4 {[%emt 0:00:00]} Rxd1+ {[%emt 0:01:09]} 27. Bxd1 {[%emt 0:00:00]} Ne5 {[%emt 0:00:14]} 28. Be2 {[%emt 0:00:00]} Kd7 {[%emt 0:02:52]} 29. Kf2 {[%emt 0:00:00]} a5 {[%emt 0:00:50]} 30. bxa5 {[%emt 0:00:00]} bxa5 {[%emt 0:00:05]} 31. Ke3 {[%emt 0:00:00]} Kd6 {[%emt 0:00:04]} 32. Kd4 {[%emt 0:00:00]} Nc6+ {[%emt 0:00:39]} 33. Kc3 {[%emt 0:00:00]} Kc5 {[%emt 0:01:39]} 34. h3 {[%emt 0:00:00]} h5 {[%emt 0:01:55]} 35. a3 {[%emt 0:00:00]} Nd4 {[%emt 0:00:23]} 36. Bd1 {[%emt 0:00:00]} h4 {[%emt 0:03:13]} 37. Bg4 {[%emt 0:00:03]} f6 {[%emt 0:01:55]} 38. Kd3 {[%emt 0:01:04]} Nc6 {[%emt 0:00:22]} 39. Kc3 {[%emt 0:00:23]} Nd8 {[%emt 0:01:40]} 40. Bd7 {[%emt 0:01:25]} Nb7 {[%emt 0:00:52]} 41. Kd3 {[%emt 0:00:24]} Kd6 {[%emt 0:02:24]} 42. Be8 {[%emt 0:00:16]} Nc5+ {[%emt 0:00:04]} 43. Kd4 {[%emt 0:00:19]} Ne6+ {[%emt 0:00:04]} 44. Ke3 {[%emt 0:00:56]} g5 {[%emt 0:00:01]} 45. Bf7 {[%emt 0:00:20]} Nf4 {[%emt 0:00:24]} 46. Kf3 {[%emt 0:00:24]} Ke5 {[%emt 0:00:01]} 47. Bg8 {[%emt 0:00:35]} Kd4 {[%emt 0:00:12]} 48. Bf7 {[%emt 0:00:16]} c5 {[%emt 0:00:02]} 49. Bg8 {[%emt 0:00:03]} Nd3 {[%emt 0:00:22]} 50. Kg4 {[%emt 0:00:11]} Ke5 {[%emt 0:02:10]} 51. Kf3 {[%emt 0:00:14]} Kd4 {[%emt 0:00:33]} 52. Kg4 {[%emt 0:00:02]} Nf4 {[%emt 0:00:25]} 53. Kf5 {[%emt 0:00:09]} Nxg2 {[%emt 0:00:01]} 54. Kxf6 {[%emt 0:00:03]} g4 {[%emt 0:00:03]} 55. e5 {[%emt 0:00:35]} gxh3 {[%emt 0:00:33]} 56. e6 {[%emt 0:00:03]} h2 {[%emt 0:00:02]} 57. e7 {[%emt 0:00:01]} h1=Q {[%emt 0:00:02]} 58. e8=Q {[%emt 0:00:54]} Qf1+ {[%emt 0:00:03]} 59. Kg7 {[%emt 0:00:00]} Qf4 {[%emt 0:00:37]} 60. Qd8+ {[%emt 0:00:00]} Ke3 {[%emt 0:00:03]} 61. Qxa5 {[%emt 0:00:00]} Qe5+ {[%emt 0:00:10]} 62. Kf8 {[%emt 0:00:00]} h3 {[%emt 0:00:10]} 63. Bd5 {[%emt 0:00:00]} Qf6+ {[%emt 0:00:13]} 64. Ke8 {[%emt 0:00:00]} Qe5+ {[%emt 0:00:12]} 65. Kf8 {[%emt 0:00:03]} Qd6+ {[%emt 0:00:02]} 66. Kf7 {[%emt 0:00:08]} Kd3 {[%emt 0:00:08]} 67. Qb5 {[%emt 0:00:23]} Ne3 {[%emt 0:00:34]} 68. Qb1+ {[%emt 0:00:13]} Kd2 {[%emt 0:00:00]} 69. Qb2+ {[%emt 0:00:17]} Nc2 {[%emt 0:00:00]} 70. Qb1 {[%emt 0:00:39]} h2 {[%emt 0:00:00]} 71. Qh1 {[%emt 0:00:10]} Qf4+ {[%emt 0:00:09]} 72. Ke7 {[%emt 0:00:07]} Ne3 {[%emt 0:00:09]} 73. a4 {[%emt 0:00:08]} Nxd5+ {[%emt 0:00:27]} 74. Qxd5+ {[%emt 0:00:14]} Kc3 {[%emt 0:00:08]} 0-1

[Event "Charlotte Open 2024"]
[Site "Charlotte"]
[Date "2024.01.15"]
[Round "4.4"]
[White "Brodsky, David"]
[Black "Abrahamyan, Tatev"]
[Result "1-0"]
[ECO "C02"]
[WhiteElo "2492"]
[BlackElo "2311"]
[Annotator "RC"]
[PlyCount "96"]
[EventDate "2024.01.05"]
[EventType "swiss"]
[EventCountry "USA"]
[SourceTitle "playchess.com"]
[Source "ChessBase"]
[SourceQuality "1"]
[TimeControl "6600+10"]

1. e4 {[%emt 0:07:03]} e6 {[%emt 0:00:05]} 2. d4 {[%emt 0:00:04]} d5 {[%emt 0:00:03]} 3. e5 {[%emt 0:00:01]} c5 {[%emt 0:00:13]} 4. c3 {[%emt 0:00:04]} Nc6 {[%emt 0:01:26]} 5. Nf3 {[%emt 0:00:08]} Bd7 {[%emt 0:02:30]} 6. Be2 {[%emt 0:00:13]} Rc8 {[%emt 0:00:22]} 7. O-O {[%emt 0:00:50]} Qb6 {[%emt 0:03:52]} 8. dxc5 {[%emt 0:02:08]} Qc7 {[%emt 0:01:19]} 9. Bf4 {[%emt 0:06:02]} Bxc5 {[%emt 0:17:38]} 10. b4 {[%emt 0:01:30]} Bb6 {[%emt 0:03:15]} 11. Na3 {[%emt 0:02:35]} a6 {[%emt 0:01:56]} 12. Rc1 {[%emt 0:08:22]} Nge7 {[%emt 0:12:41]} 13. b5 {[%emt 0:00:25]} Na5 {[%emt 0:04:44]} 14. bxa6 {[%emt 0:03:19]} O-O {[%emt 0:00:33]} 15. c4 {[%emt 0:03:26]} dxc4 {[%emt 0:16:30]} 16. Nxc4 {[%emt 0:00:35]} Nxc4 {[%emt 0:00:17]} 17. Bxc4 {[%emt 0:00:36]} Bc6 {[%emt 0:00:25]} 18. Ng5 {[%emt 0:17:43]} h6 {[%emt 0:10:32]} 19. Nh3 {[%emt 0:03:29]} Rfd8 {[%emt 0:06:29]} 20. Qg4 {[%emt 0:09:38]} Nf5 {[%emt 0:08:41]} 21. Bb5 {[%emt 0:04:53]} Rd5 {[%emt 0:01:35]} 22. a4 {[%emt 0:09:25]} Qd7 {[%emt 0:01:17]} 23. Bxc6 {[%emt 0:03:06]} Rxc6 {[%emt 0:02:27]} 24. Rxc6 {[%emt 0:01:28]} bxc6 {[%emt 0:02:32]} 25. Qe2 {[%emt 0:03:01]} Ra5 {[%emt 0:01:47]} 26. Qc4 {[%emt 0:04:03]} Qd5 {[%emt 0:04:23]} 27. Rc1 {[%emt 0:00:26]} Qxc4 {[%emt 0:01:12]} 28. Rxc4 {[%emt 0:00:05]} Rxa6 {[%emt 0:00:03]} 29. Kf1 {[%emt 0:02:38]} Bc7 {[%emt 0:00:43]} 30. g4 {[%emt 0:02:11]} Ne7 {[%emt 0:00:08]} 31. Bg3 {[%emt 0:00:31]} Nd5 {[%emt 0:00:56]} 32. Ng1 {[%emt 0:02:16]} Ba5 {[%emt 0:00:52]} 33. Ne2 {[%emt 0:01:04]} Bb4 {[%emt 0:00:14]} 34. Nf4 {[%emt 0:04:20]} c5 {[%emt 0:00:30]} 35. Nd3 {[%emt 0:00:31]} Ra5 {[%emt 0:00:22]} 36. h3 {[%emt 0:01:02]} Nb6 {[%emt 0:00:21]} 37. Rc2 {[%emt 0:00:44]} Ba3 {[%emt 0:00:39]} 38. Rc3 {[%emt 0:00:40]} Bb4 {[%emt 0:00:35]} 39. Rc2 {[%emt 0:00:18]} g5 {[%emt 0:00:35]} 40. f4 {[%emt 0:02:15]} Nd5 {[%emt 0:00:21]} 41. Ra2 {[%emt 0:00:41]} c4 {[%emt 0:00:56]} 42. Nxb4 {[%emt 0:00:55]} Nxb4 {[%emt 0:00:00]} 43. Be1 {[%emt 0:01:26]} Nxa2 {[%emt 0:00:05]} 44. Bxa5 {[%emt 0:00:02]} c3 {[%emt 0:00:33]} 45. fxg5 {[%emt 0:00:04]} hxg5 {[%emt 0:00:01]} 46. Bb6 {[%emt 0:00:18]} c2 {[%emt 0:00:30]} 47. Be3 {[%emt 0:00:01]} c1=Q+ 48. Bxc1 {[%emt 0:00:01]} Nxc1 {[%emt 0:00:17]} 1-0

[Event "Charlotte Open 2024"]
[Site "Charlotte"]
[Date "2024.01.15"]
[Round "4.5"]
[White "Troff, Kayden"]
[Black "Proleiko, Julian"]
[Result "1-0"]
[ECO "A04"]
[WhiteElo "2484"]
[BlackElo "2270"]
[Annotator "RC"]
[PlyCount "101"]
[EventDate "2024.01.05"]
[EventType "swiss"]
[EventCountry "USA"]
[SourceTitle "playchess.com"]
[Source "ChessBase"]
[SourceQuality "1"]
[TimeControl "6600+10"]

1. Nf3 {[%emt 0:00:03]} c5 {[%emt 0:00:25]} 2. g3 {[%emt 0:00:21]} g6 {[%emt 0:01:05]} 3. Bg2 {[%emt 0:01:31]} Bg7 {[%emt 0:00:07]} 4. O-O {[%emt 0:00:15]} Nc6 {[%emt 0:00:31]} 5. e3 {[%emt 0:07:43]} d5 {[%emt 0:00:45]} 6. d4 {[%emt 0:00:27]} cxd4 {[%emt 0:03:43]} 7. Nxd4 {[%emt 0:02:11]} Nf6 {[%emt 0:04:06]} 8. c4 {[%emt 0:06:15]} Bg4 {[%emt 0:03:36]} 9. Qa4 {[%emt 0:06:04]} Bd7 {[%emt 0:02:55]} 10. cxd5 {[%emt 0:05:27]} Nxd5 {[%emt 0:00:16]} 11. Nxc6 {[%emt 0:04:30]} Bxc6 {[%emt 0:00:05]} 12. Qb3 {[%emt 0:00:28]} e6 {[%emt 0:01:15]} 13. e4 {[%emt 0:01:01]} Nb6 {[%emt 0:00:35]} 14. Nc3 {[%emt 0:05:03]} O-O {[%emt 0:00:32]} 15. Be3 {[%emt 0:02:19]} Qd3 {[%emt 0:04:27]} 16. Rfd1 {[%emt 0:05:12]} Qc4 {[%emt 0:00:16]} 17. Qa3 {[%emt 0:04:17]} Qa6 {[%emt 0:07:56]} 18. Qxa6 {[%emt 0:06:01]} bxa6 {[%emt 0:00:01]} 19. Bd4 {[%emt 0:00:22]} Rfd8 {[%emt 0:02:21]} 20. Bxg7 {[%emt 0:01:23]} Kxg7 {[%emt 0:00:02]} 21. Bf1 {[%emt 0:03:43]} a5 {[%emt 0:00:42]} 22. Rac1 {[%emt 0:09:14]} Rxd1 {[%emt 0:07:09]} 23. Rxd1 {[%emt 0:00:12]} Na4 {[%emt 0:00:03]} 24. Nxa4 {[%emt 0:06:10]} Bxa4 {[%emt 0:00:02]} 25. Rc1 {[%emt 0:00:45]} Rb8 {[%emt 0:01:10]} 26. b3 {[%emt 0:03:10]} Bb5 {[%emt 0:00:04]} 27. Bxb5 {[%emt 0:00:10]} Rxb5 {[%emt 0:00:02]} 28. Rc4 {[%emt 0:00:09]} Kf6 {[%emt 0:03:17]} 29. Kf1 {[%emt 0:01:14]} a6 {[%emt 0:02:13]} 30. Ke2 {[%emt 0:00:38]} Ke5 {[%emt 0:00:51]} 31. f4+ {[%emt 0:02:36]} Kd6 {[%emt 0:00:04]} 32. e5+ {[%emt 0:01:04]} Kd7 {[%emt 0:00:07]} 33. Kd3 {[%emt 0:03:08]} Rd5+ {[%emt 0:01:50]} 34. Ke3 {[%emt 0:00:39]} Rb5 {[%emt 0:00:09]} 35. Rd4+ {[%emt 0:04:58]} Kc7 {[%emt 0:00:38]} 36. Kf3 {[%emt 0:09:20]} Rc5 {[%emt 0:02:51]} 37. Kg4 {[%emt 0:00:08]} h6 {[%emt 0:02:22]} 38. Rd2 {[%emt 0:02:35]} a4 {[%emt 0:03:10]} 39. bxa4 {[%emt 0:00:07]} Rc4 {[%emt 0:00:07]} 40. a5 {[%emt 0:00:06]} Ra4 {[%emt 0:01:17]} 41. h4 {[%emt 0:00:05]} Rxa5 {[%emt 0:10:09]} 42. h5 {[%emt 0:00:19]} gxh5+ {[%emt 0:03:50]} 43. Kxh5 {[%emt 0:00:12]} f6 {[%emt 0:00:03]} 44. Kxh6 {[%emt 0:02:02]} fxe5 {[%emt 0:00:07]} 45. fxe5 {[%emt 0:00:05]} Rxe5 {[%emt 0:00:08]} 46. g4 {[%emt 0:00:09]} Rd5 {[%emt 0:06:07]} 47. Rh2 {[%emt 0:01:52]} e5 {[%emt 0:06:47]} 48. g5 {[%emt 0:00:06]} e4 {[%emt 0:00:04]} 49. g6 {[%emt 0:00:02]} e3 {[%emt 0:00:12]} 50. g7 {[%emt 0:00:19]} Rd2 {[%emt 0:00:06]} 51. Rh1 {[%emt 0:00:05]} 1-0

[Event "Charlotte Open 2024"]
[Site "Charlotte"]
[Date "2024.01.15"]
[Round "4.6"]
[White "Cordova, Emilio"]
[Black "Jiang, Andrew"]
[Result "1-0"]
[ECO "C00"]
[WhiteElo "2563"]
[BlackElo "2213"]
[Annotator "RC"]
[PlyCount "53"]
[EventDate "2024.01.05"]
[EventType "swiss"]
[EventCountry "USA"]
[SourceTitle "playchess.com"]
[Source "ChessBase"]
[SourceQuality "1"]
[TimeControl "6600+10"]

1. Nf3 {[%emt 0:06:09]} d5 {[%emt 0:00:10]} 2. g3 {[%emt 0:00:28]} Nf6 {[%emt 0:00:13]} 3. Bg2 {[%emt 0:00:05]} e6 {[%emt 0:00:12]} 4. O-O {[%emt 0:00:37]} Be7 {[%emt 0:00:18]} 5. d3 {[%emt 0:01:19]} O-O {[%emt 0:02:40]} 6. Nbd2 {[%emt 0:00:11]} c5 {[%emt 0:03:16]} 7. e4 {[%emt 0:00:15]} Nc6 {[%emt 0:00:14]} 8. Re1 {[%emt 0:00:07]} b6 {[%emt 0:02:54]} 9. e5 {[%emt 0:00:18]} Nd7 {[%emt 0:00:11]} 10. Nf1 {[%emt 0:00:29]} Qc7 {[%emt 0:12:53]} 11. Bf4 {[%emt 0:00:45]} Ba6 {[%emt 0:00:54]} 12. h4 {[%emt 0:01:19]} Rfd8 {[%emt 0:06:14]} 13. h5 {[%emt 0:01:32]} h6 {[%emt 0:04:39]} 14. Ne3 {[%emt 0:11:40]} b5 {[%emt 0:08:44]} 15. Qd2 {[%emt 0:04:48]} Bf8 {[%emt 0:10:12]} 16. Ng4 {[%emt 0:01:06]} Kh7 {[%emt 0:01:34]} 17. Nfh2 {[%emt 0:00:57]} c4 {[%emt 0:05:35]} 18. d4 {[%emt 0:02:35]} b4 {[%emt 0:06:35]} 19. c3 {[%emt 0:00:15]} Bb5 {[%emt 0:02:37]} 20. Re3 {[%emt 0:04:16]} Ne7 {[%emt 0:07:43]} 21. Rf3 {[%emt 0:04:02]} bxc3 {[%emt 0:09:10]} 22. bxc3 {[%emt 0:00:17]} Ng8 {[%emt 0:00:07]} 23. Qc2+ {[%emt 0:04:17]} Kh8 {[%emt 0:00:25]} 24. Bxh6 {[%emt 0:01:09]} Nxh6 {[%emt 0:00:20]} 25. Nxh6 {[%emt 0:00:04]} gxh6 {[%emt 0:00:19]} 26. Rxf7 {[%emt 0:00:03]} Bg7 {[%emt 0:00:19]} 27. Ng4 {[%emt 0:00:37]} 1-0

[Event "Charlotte Open 2024"]
[Site "Charlotte"]
[Date "2024.01.15"]
[Round "4.7"]
[White "Wofford, Matthew"]
[Black "Kantor, Gergely"]
[Result "0-1"]
[ECO "C89"]
[WhiteElo "1993"]
[BlackElo "2531"]
[Annotator "RC"]
[PlyCount "70"]
[EventDate "2024.01.05"]
[EventType "swiss"]
[EventCountry "USA"]
[SourceTitle "playchess.com"]
[Source "ChessBase"]
[SourceQuality "1"]
[TimeControl "6600+10"]

1. e4 {[%emt 0:00:02]} e5 {[%emt 0:06:57]} 2. Nf3 {[%emt 0:00:05]} Nc6 {[%emt 0:00:09]} 3. Bb5 {[%emt 0:00:10]} a6 {[%emt 0:02:29]} 4. Ba4 {[%emt 0:00:06]} Nf6 {[%emt 0:01:24]} 5. O-O {[%emt 0:00:11]} Be7 {[%emt 0:00:02]} 6. Re1 {[%emt 0:00:09]} b5 {[%emt 0:00:06]} 7. Bb3 {[%emt 0:00:05]} O-O {[%emt 0:00:37]} 8. c3 {[%emt 0:00:18]} Na5 {[%emt 0:01:57]} 9. Bc2 {[%emt 0:01:46]} d5 {[%emt 0:00:44]} 10. exd5 {[%emt 0:04:19]} e4 {[%emt 0:02:45]} 11. Ne5 {[%emt 0:07:25]} Qxd5 {[%emt 0:14:31]} 12. d4 {[%emt 0:01:02]} exd3 {[%emt 0:01:20]} 13. Qxd3 {[%emt 0:03:46]} Re8 {[%emt 0:01:08]} 14. Qxd5 {[%emt 0:09:08]} Nxd5 {[%emt 0:00:04]} 15. Nd2 {[%emt 0:10:07]} Bf6 {[%emt 0:04:02]} 16. Nef3 {[%emt 0:07:13]} Bg4 {[%emt 0:01:09]} 17. h3 {[%emt 0:12:14]} Bh5 {[%emt 0:02:46]} 18. Be4 {[%emt 0:09:29]} Rad8 {[%emt 0:02:24]} 19. g4 {[%emt 0:06:05]} Bg6 {[%emt 0:02:51]} 20. g5 {[%emt 0:01:17]} Be7 {[%emt 0:07:59]} 21. b4 {[%emt 0:04:07]} Nc6 {[%emt 0:05:23]} 22. a4 {[%emt 0:01:54]} f5 {[%emt 0:10:29]} 23. Bxd5+ {[%emt 0:01:25]} Rxd5 {[%emt 0:03:30]} 24. axb5 {[%emt 0:01:02]} axb5 {[%emt 0:00:09]} 25. Kg2 {[%emt 0:06:09]} Rd3 {[%emt 0:03:11]} 26. Bb2 {[%emt 0:06:41]} Bf7 {[%emt 0:03:50]} 27. Re3 {[%emt 0:01:58]} Rxe3 {[%emt 0:04:46]} 28. fxe3 {[%emt 0:00:08]} Rd8 {[%emt 0:00:11]} 29. Ra6 {[%emt 0:02:15]} Ne5 {[%emt 0:03:13]} 30. Nxe5 {[%emt 0:05:44]} Rxd2+ {[%emt 0:01:33]} 31. Kg3 {[%emt 0:00:19]} Bd5 {[%emt 0:01:41]} 32. c4 {[%emt 0:02:28]} Be4 {[%emt 0:01:45]} 33. Nc6 {[%emt 0:05:04]} Bxc6 {[%emt 0:01:04]} 34. Bxg7 {[%emt 0:01:12]} Rg2+ {[%emt 0:01:49]} 35. Kf4 {[%emt 0:00:15]} Be4 {[%emt 0:01:11]} 0-1

[Event "Charlotte Open 2024"]
[Site "Charlotte"]
[Date "2024.01.15"]
[Round "4.8"]
[White "Ligotti, John J"]
[Black "Belenkaya, Dina"]
[Result "1/2-1/2"]
[ECO "A30"]
[WhiteElo "1864"]
[BlackElo "2202"]
[Annotator "RC"]
[PlyCount "66"]
[EventDate "2024.01.05"]
[EventType "swiss"]
[EventCountry "USA"]
[SourceTitle "playchess.com"]
[Source "ChessBase"]
[SourceQuality "1"]
[TimeControl "6600+10"]

1. d4 {[%emt 0:00:15]} Nf6 {[%emt 0:08:51]} 2. Nf3 {[%emt 0:00:49]} e6 {[%emt 0:00:25]} 3. g3 {[%emt 0:00:35]} b6 {[%emt 0:00:49]} 4. Bg2 {[%emt 0:00:07]} Bb7 {[%emt 0:00:02]} 5. O-O {[%emt 0:00:11]} Be7 {[%emt 0:01:14]} 6. c4 {[%emt 0:00:59]} c5 {[%emt 0:01:40]} 7. d5 {[%emt 0:02:53]} d6 {[%emt 0:06:00]} 8. Nc3 {[%emt 0:03:08]} e5 {[%emt 0:09:48]} 9. e4 {[%emt 0:02:40]} O-O {[%emt 0:03:13]} 10. Ne1 {[%emt 0:03:28]} Nfd7 {[%emt 0:12:02]} 11. Nd3 {[%emt 0:02:37]} Bf6 {[%emt 0:00:58]} 12. Nb5 {[%emt 0:07:21]} Be7 {[%emt 0:00:41]} 13. f4 {[%emt 0:02:21]} a6 {[%emt 0:01:02]} 14. Nc3 {[%emt 0:01:10]} exf4 {[%emt 0:01:16]} 15. Bxf4 {[%emt 0:08:40]} b5 {[%emt 0:03:14]} 16. cxb5 {[%emt 0:08:19]} Qb6 {[%emt 0:06:32]} 17. a4 {[%emt 0:03:47]} axb5 {[%emt 0:02:14]} 18. Nxb5 {[%emt 0:04:59]} Ba6 {[%emt 0:06:11]} 19. Qd2 {[%emt 0:10:49]} Bf6 {[%emt 0:03:40]} 20. Kh1 {[%emt 0:01:59]} Bxb5 {[%emt 0:03:28]} 21. axb5 {[%emt 0:00:16]} Rxa1 {[%emt 0:00:12]} 22. Rxa1 {[%emt 0:00:01]} c4 {[%emt 0:01:22]} 23. Nb4 {[%emt 0:04:34]} Nc5 {[%emt 0:01:34]} 24. Ra8 {[%emt 0:08:25]} Nbd7 {[%emt 0:08:30]} 25. Rxf8+ {[%emt 0:01:09]} Nxf8 {[%emt 0:00:47]} 26. h4 {[%emt 0:15:10]} Ng6 {[%emt 0:02:46]} 27. Nc6 {[%emt 0:02:18]} Nd3 {[%emt 0:16:34]} 28. Bxd6 {[%emt 0:05:01]} Nf2+ {[%emt 0:03:49]} 29. Kh2 {[%emt 0:00:26]} Ng4+ {[%emt 0:00:30]} 30. Kh1 {[%emt 0:01:45]} Nf2+ {[%emt 0:00:14]} 31. Kh2 {[%emt 0:00:11]} Ng4+ {[%emt 0:00:12]} 32. Kh1 {[%emt 0:00:33]} Nf2+ {[%emt 0:02:53]} 33. Kh2 {[%emt 0:00:08]} Ng4+ {[%emt 0:00:05]} 1/2-1/2

[Event "Charlotte Open 2024"]
[Site "Charlotte"]
[Date "2024.01.15"]
[Round "4.9"]
[White "Li, Sophie"]
[Black "Botez, Andrea"]
[Result "1-0"]
[ECO "B22"]
[WhiteElo "1600"]
[BlackElo "1709"]
[Annotator "NA RC"]
[PlyCount "85"]
[EventDate "2024.01.05"]
[EventType "swiss"]
[EventCountry "USA"]
[SourceTitle "playchess.com"]
[Source "ChessBase"]
[SourceQuality "1"]
[TimeControl "6600+10"]

1. e4 {[%emt 0:10:22]} c5 {[%emt 0:15:18]} 2. c3 {[%emt 0:00:53]} d5 {[%emt 0:00:28]} 3. exd5 {[%emt 0:00:32]} Qxd5 {[%emt 0:00:03]} 4. d4 {[%emt 0:01:18]} cxd4 {[%emt 0:02:14]} 5. cxd4 {[%emt 0:00:13]} Nc6 {[%emt 0:01:21]} 6. Nf3 {[%emt 0:00:58]} Bg4 {[%emt 0:04:12]} 7. Be2 {[%emt 0:00:54]} e6 {[%emt 0:02:00]} 8. Nc3 {[%emt 0:01:59]} Qd8 {[%emt 0:01:12]} 9. d5 {[%emt 0:02:22]} exd5 {[%emt 0:01:31]} 10. Qxd5 {[%emt 0:05:41]} Qxd5 {[%emt 0:12:46]} 11. Nxd5 {[%emt 0:01:51]} O-O-O {[%emt 0:04:31]} 12. Nc3 {[%emt 0:05:11]} Bb4 {[%emt 0:09:13]} 13. Bd2 {[%emt 0:03:37]} Nf6 {[%emt 0:03:27]} 14. O-O-O {[%emt 0:01:40]} Rhe8 {[%emt 0:02:51]} 15. Rhe1 {[%emt 1:15:09]} h6 {[%emt 0:00:47]} 16. h3 {[%emt 0:00:10]} Bf5 {[%emt 0:01:17]} 17. Bc4 {[%emt 0:00:00]} Rd7 {[%emt 0:06:48]} 18. Rxe8+ {[%emt 0:00:00]} Nxe8 {[%emt 0:01:43]} 19. Re1 {[%emt 0:00:00]} Nd6 {[%emt 0:02:58]} 20. Bb3 {[%emt 0:00:00]} Bc5 {[%emt 0:12:45]} 21. Be3 {[%emt 0:00:00]} Bxe3+ {[%emt 0:03:11]} 22. Rxe3 {[%emt 0:00:00]} Na5 {[%emt 0:01:05]} 23. Bd5 {[%emt 0:00:00]} Nac4 {[%emt 0:02:29]} 24. Bxc4 {[%emt 0:00:00]} Nxc4 {[%emt 0:00:04]} 25. Re8+ {[%emt 0:00:00]} Kc7 {[%emt 0:20:06]} 26. b3 {[%emt 0:00:00]} Rd3 {[%emt 0:00:00]} 27. Nb5+ {[%emt 0:00:00]} Kd7 {[%emt 0:00:20]} 28. Re1 {[%emt 0:00:00]} Rxf3 {[%emt 0:00:00]} 29. gxf3 {[%emt 0:00:00]} Nb6 {[%emt 0:00:00]} 30. h4 {[%emt 0:00:00]} a6 {[%emt 0:00:00]} 31. Rd1+ {[%emt 0:00:00]} Ke7 {[%emt 0:00:40]} 32. Nd6 {[%emt 0:00:00]} Be6 {[%emt 0:00:00]} 33. Nxb7 Bd5 {[%emt 0:00:20]} 34. Nc5 {[%emt 0:00:00]} a5 {[%emt 0:00:10]} 35. Na4 {[%emt 0:03:10]} Nxa4 {[%emt 0:00:10]} 36. Rxd5 {[%emt 0:00:00]} Nc3 {[%emt 0:00:00]} 37. Rxa5 {[%emt 0:00:20]} Ne2+ {[%emt 0:00:00]} 38. Kd2 {[%emt 0:00:10]} Nd4 {[%emt 0:00:00]} 39. Ke3 {[%emt 0:00:00]} Nc2+ {[%emt 0:00:00]} 40. Ke4 {[%emt 0:00:20]} Nb4 {[%emt 0:00:50]} 41. a3 {[%emt 0:00:00]} Nc6 {[%emt 0:00:00]} 42. Rc5 f5+ {[%emt 0:00:20]} 43. Rxf5 {[%emt 0:00:00]} 1-0

[Event "Charlotte Open 2024"]
[Site "Charlotte"]
[Date "2024.01.15"]
[Round "4.11"]
[White "Aaron, Deepak"]
[Black "Peatman, Carter"]
[Result "0-1"]
[ECO "A11"]
[WhiteElo "2296"]
[BlackElo "2022"]
[Annotator "RC"]
[PlyCount "78"]
[EventDate "2024.01.05"]
[EventType "swiss"]
[EventCountry "USA"]
[SourceTitle "playchess.com"]
[Source "ChessBase"]
[SourceQuality "1"]
[TimeControl "6600+10"]

1. c4 {[%emt 0:03:06]} c6 {[%emt 0:02:07]} 2. Nf3 {[%emt 0:00:17]} d5 {[%emt 0:00:20]} 3. e3 {[%emt 0:00:21]} Bg4 {[%emt 0:00:12]} 4. cxd5 {[%emt 0:04:07]} Bxf3 {[%emt 0:00:29]} 5. Qxf3 {[%emt 0:04:28]} cxd5 {[%emt 0:00:36]} 6. Nc3 {[%emt 0:00:33]} Nf6 {[%emt 0:02:59]} 7. g4 {[%emt 0:00:46]} e6 {[%emt 0:00:50]} 8. d4 {[%emt 0:05:10]} Nc6 {[%emt 0:00:24]} 9. Bd3 {[%emt 0:00:44]} Bd6 {[%emt 0:06:42]} 10. Qh3 {[%emt 0:02:07]} Qe7 {[%emt 0:09:24]} 11. f4 {[%emt 0:01:48]} O-O-O {[%emt 0:08:30]} 12. a3 {[%emt 0:00:54]} Na5 {[%emt 0:12:43]} 13. Bc2 {[%emt 0:16:04]} Kb8 {[%emt 0:01:32]} 14. O-O {[%emt 0:02:36]} Rc8 {[%emt 0:02:54]} 15. g5 {[%emt 0:00:43]} Nd7 {[%emt 0:01:07]} 16. e4 {[%emt 0:00:24]} dxe4 {[%emt 0:02:01]} 17. b4 {[%emt 0:10:11]} Nc6 {[%emt 0:09:48]} 18. Rd1 {[%emt 0:10:42]} h6 {[%emt 0:05:28]} 19. g6 {[%emt 0:07:41]} f5 {[%emt 0:00:55]} 20. d5 {[%emt 0:01:00]} Nd8 {[%emt 0:05:41]} 21. Bb3 {[%emt 0:09:27]} e5 {[%emt 0:11:46]} 22. Nb5 {[%emt 0:06:34]} exf4 {[%emt 0:01:46]} 23. Nxd6 {[%emt 0:00:29]} Qxd6 {[%emt 0:00:02]} 24. Qxf5 {[%emt 0:00:18]} e3 {[%emt 0:00:52]} 25. Bb2 {[%emt 0:02:32]} e2 {[%emt 0:05:23]} 26. Rdc1 {[%emt 0:01:32]} Qb6+ {[%emt 0:07:49]} 27. Kg2 {[%emt 0:01:40]} Rxc1 {[%emt 0:01:53]} 28. Bxc1 {[%emt 0:07:16]} f3+ {[%emt 0:04:09]} 29. Kxf3 {[%emt 0:04:28]} e1=N+ {[%emt 0:00:37]} 30. Ke2 {[%emt 0:01:27]} Re8+ {[%emt 0:01:35]} 31. Kf1 {[%emt 0:00:36]} Nd3 {[%emt 0:04:46]} 32. Qxd3 {[%emt 0:04:09]} Rf8+ {[%emt 0:00:00]} 33. Ke1 {[%emt 0:00:22]} Qg1+ {[%emt 0:00:00]} 34. Kd2 {[%emt 0:00:02]} Qxh2+ {[%emt 0:00:00]} 35. Kd1 {[%emt 0:00:51]} Ne5 {[%emt 0:00:40]} 36. Qe2 {[%emt 0:00:31]} Rf2 {[%emt 0:00:00]} 37. Bf4 {[%emt 0:00:24]} Qxf4 {[%emt 0:00:00]} 38. Qe1 {[%emt 0:00:00]} Qd4+ {[%emt 0:00:01]} 39. Kc1 {[%emt 0:00:00]} Qxa1# 0-1